{"text_format":"1","workbook":"xlsx","n_sheets":5,"sheets":["MATRIZ DE INDICADORES","EPR-1","EPR-2","ACTUALIZACIONES","ITEM"],"not_rendered":{"charts":2,"images":2,"macros":1,"external_links":0,"defined_names":9,"comments":2,"pivot_tables":0},"unopened":[],"bounds":{"document_bytes":16777216,"sheet_cells":100000,"rows_first":2000,"rows_last":500,"rows_between":2000,"halvings":0,"cell_chars":16384,"cell_head_chars":4096},"cells_cut":0,"cells_raw":0,"read":"whole","date_system":"1900"}

{"sheet":"MATRIZ DE INDICADORES","index":0,"n_rows":103,"n_cols":21,"rows_kept":103,"cut":false,"hidden":false,"merged":[[16,17,19,17],[16,18,19,18],[16,19,19,19],[16,20,19,20],[12,11,15,11],[16,11,19,11],[16,6,19,6],[16,7,19,7],[16,8,19,8],[16,9,19,9],[16,10,19,10],[12,6,15,6],[12,7,15,7],[12,8,15,8],[12,9,15,9],[12,10,15,10],[1,18,1,20],[1,1,4,2],[1,3,1,17],[2,3,2,17],[3,3,4,17],[87,1,87,20],[88,1,88,20],[2,18,2,20],[3,18,3,20],[4,18,4,20],[9,1,10,20],[6,16,7,17],[12,17,15,17],[12,18,15,18],[12,19,15,19],[12,20,15,20],[12,1,19,1],[12,2,19,2],[12,3,19,3],[12,4,19,4],[12,5,19,5]]}
[]
[null,null,null,"MACROPROCESO ESTRATÉGICO",null,null,null,null,null,null,null,null,null,null,null,null,null,null,"CÓDIGO: ESGr027"]
[null,null,null,"PROCESO GESTIÓN SISTEMAS INTEGRADOS - CALIDAD",null,null,null,null,null,null,null,null,null,null,null,null,null,null,"VERSIÓN: 8"]
[null,null,null,"MATRIZ DE MEDICIÓN Y SEGUIMIENTO A LOS PROCESOS DE GESTIÓN",null,null,null,null,null,null,null,null,null,null,null,null,null,null,"VIGENCIA: 2023-07-28"]
[null,null,null,null,null,null,null,null,null,null,null,null,null,null,null,null,null,null,"PÁGINA: 1 de 4"]
[]
[null,null,null,null,null,null,null,null,null,null,null,null,null,null,null,null,"FECHA DE ACTUALIZACIÓN:",null,"AÑO","MES","DÍA"]
[null,null,null,null,null,null,null,null,null,null,null,null,null,null,null,null,null,null,2023,11,24]
[]
[null,"ALINEACIÓN DE LOS INDICADORES CON LOS DOCUMENTOS ESTRATÉGICOS Y LOS OBJETIVOS DE CALIDAD"]
[]
[null,"PROCESO GESTIÓN","FRENTES DEL PLAN ESTRATÉGICO","LINEAMIENTOS DE LA POLÍTICA DE CALIDAD","OBJETIVOS DE CALIDAD","OBJETIVO GENERAL DEL PROCESO","OBJETIVOS ESPECÍFICOS","NOMBRE INDICADOR","FÓRMULA","TIPO DE INDICADOR","SEGUIMIENTO MEDICIÓN","META","ACTIVIDAD","RESPONSABLE DE LA ACTIVIDAD","¿QUÉ RECURSOS SE REQUIEREN?","FECHA EJECUCIÓN DE ACTIVIDADES","EVIDENCIA","¿CUÁNDO FINALIZARÁ?","RESULTADO ","NIVEL OBTENIDO","ACCESO"]
[null,"Proyectos Especiales y Relaciones Interinstitucionales","Frente Estratégico VI: Organización universitaria inteligente con alma y corazón","Consolidación de una organización universitaria inteligente con alma y corazón","Mejorar continuamente el desempeño de los procesos a través de la implementación de buenas prácticas institucionales y de la aplicación de los mecanismos dispuestos por la Universidad de Cundinamarca para la constitución de una organización universitaria inteligente con alma y corazón.","Promover y ejecutar proyectos con entidades públicas y/o privadas, nacionales e internacionales, mediante convenios y/o contratos interadministrativos, que permitan fortalecer la gestión de la Universidad de Cundinamarca a través de la generación de recursos financieros, transmisión de conocimientos a las comunidades y aprehensión para el mejoramiento académico.","Suscribir al menos tres (3) convenios y/o contratos durante la vigencia 2023, con el fin de asegurar el cumplimiento de la meta tanto en ingresos como en número de contratos.","Evaluación del No. de alianzas estratégicas mediante convenios empresariales","(No. de alianzas estratégicas mediante convenios empresariales / No. de alianzas estratégicas proyectadas por año) * 100 ","Eficiencia","Trimestral",1,"Suscribir el convenio y/o contrato.","Directora del proceso EPR","Recursos informáticos (SECOP) ","Cuando se suscriba el convenio y/o contrato","Convenio y/o contrato, pantallazo de aceptación de la minuta del contrato en SECOP","Dicembre 2023",1.33,"Excelente","EPR-1"]
[null,null,null,null,null,null,null,null,null,null,null,null,"Realizar la contratación de acuerdo con el tipo de contrato y/o convenio suscrito.","Directora, asesor jurídico, coordinador del proyecto y gestora financiera","Personal que tenga conocimiento y experiencia en el tema contratado","Depende del tipo de invitación y las condiciones de tiempo establecidas contractualmente","Contratos de los OPS y convenio de cooperación especial"]
[null,null,null,null,null,null,null,null,null,null,null,null,"Ejecutar el contrato ","Firmante convenio de cooperación especial, coordinador del proyecto","Recurso humano, recursos informáticos (Integradoc), infraestructura física, cronograma de actividades del contrato","De acuerdo con las condiciones de tiempo, modo y lugar establecidas en el contrato","Informes periódicos de las actividades realizadas, soportes de los pagos realizados a la contratación derivada y/o a la UDEC"]
[null,null,null,null,null,null,null,null,null,null,null,null,"Elaborar el acta de terminación del contrato.","Supervisor(a) del contrato, asesor jurídico, coordinador del proyecto y gestora financiera","Informe final de ejecución ","De acuerdo con las condiciones establecidas en el contrato","Acta de terminación y/o liquidación del contrato firmada "]
[null,null,null,null,null,null,"Ejecutar un contrato  y/o convenio en un 10 % menor al tiempo establecido como plazo de terminacion del mismo, con el fin de incrementar la gestión comercial de la Dirección de Proyectos Especiales  ","Evaluación del No. de actividades desarrolladas de los contratos suscritos ","(No. de actividades desarrolladas de los contratos suscritos en el tiempo planeado / No. Total de actividades planificadas de los contratos suscritos) * 100 ","Eficiencia","Trimestral",1,"Elaboración del cronograma actividades","Coordinador del proyecto, apoyo administartivo, organismo cooperante","Contrato interadministrativo","Entre ocho y quince días hábiles después de la suscripción del contrato  ","Cronograma de actividades ","Dicembre 2023",0.36,"Deficiente","EPR-2"]
[null,null,null,null,null,null,null,null,null,null,null,null,"Ejecución de actividades de la contratación derivada","Organismo cooperante","Recurso humano, recursos informáticos, infraestructura física y cronograma de actividades (Recursos del cooperante).","Suscripción del acta de inicio","Acta de inicio "]
[null,null,null,null,null,null,null,null,null,null,null,null,"Verificación del cumplimiento en la ejecución de actividades","Coordinador del proyecto","Revisión del informe periódico de actividades AFIr067 y ADOr006","Durante el desarrollo del contrato","Informe periódico de actividades AFIr067 y ADOr006, formato de oficio"]
[null,null,null,null,null,null,null,null,null,null,null,null,"Liquidación del contrato interadministrativo y luego del convenio de cooperación  ","Representante entidad contratante, supervisor del contrato","Todos los informes generados a través de la ejecución del contrato","Dos meses después del vencimiento del plazo de ejecución","Informes periódicos de actividades AFIr067 y ADOr006 y el acta de terminación y/o liquidación del contrato firmada "]
[]
[]
[]
[]
[]
[]
[]
[]
[]
[]
[]
[]
[]
[]
[]
[]
[]
[]
[]
[]
[]
[]
[]
[]
[]
[]
[]
[]
[]
[]
[]
[]
[]
[]
[]
[]
[]
[]
[]
[]
[]
[]
[]
[]
[]
[]
[]
[]
[]
[]
[]
[]
[]
[]
[]
[]
[]
[]
[]
[]
[]
[]
[]
[]
[]
[]
[]
[null,"Diagonal 18 No. 20-29 Fusagasugá – Cundinamarca\nTeléfono (601)  8281483 Línea Gratuita 018000180414\nwww.ucundinamarca.edu.co   E-mail:  info@ucundinamarca.edu.co\nNIT: 890.680.062-2                                                                             "]
[null,"Documento controlado por el Sistema de Gestión de la Calidad\nAsegúrese que corresponde a la última versión consultando el Portal Institucional"]
[]
[]
[]
[]
[]
[]
[]
[]
[null,null,"LINEAMIENTOS DE LA POLÍTICA DE CALIDAD","OBJETIVOS DE CALIDAD","ALINEACIÓN DE LOS INDICADORES CON LOS DOCUMENTOS ESTRATÉGICOS Y LOS OBJETIVOS DE CALIDAD"]
[null,null,"LINEAMIENTOS DE LA POLÍTICA DE SEGURIDAD Y SALUD EN EL TRABAJO","OBJETIVOS DE SEGURIDAD Y SALUD EN EL TRABAJO","ALINEACIÓN DE LOS INDICADORES CON LOS DOCUMENTOS ESTRATÉGICOS Y LOS OBJETIVOS DE SEGURIDAD Y SALUD EN EL TRABAJO"]
[null,null,"LINEAMIENTOS DE LA POLÍTICA DE AMBIENTAL","OBJETIVOS DE AMBIENTAL","ALINEACIÓN DE LOS INDICADORES CON LOS DOCUMENTOS ESTRATÉGICOS Y LOS OBJETIVOS DE AMBIENTAL"]
[null,null,"LINEAMIENTOS DE LA POLÍTICA DE SEGURIDAD DE LA INFORMACIÓN","OBJETIVOS DE SEGURIDAD DE LA INFORMACIÓN","ALINEACIÓN DE LOS INDICADORES CON LOS DOCUMENTOS ESTRATÉGICOS Y LOS OBJETIVOS DE SEGURIDAD DE LA INFORMACIÓN"]
[null,null,"LINEAMIENTOS DE LA POLÍTICA DE SEGURIDAD DE ANTISOBORNO","OBJETIVOS DE SEGURIDAD DE ANTISOBORNO","ALINEACIÓN DE LOS INDICADORES CON LOS DOCUMENTOS ESTRATÉGICOS Y LOS OBJETIVOS DE SEGURIDAD DE ANTISOBORNO"]
[null,null,"LINEAMIENTOS DE LA POLÍTICA DE LA CONCILIACIÓN DE LA VIDA PERSONAL, FAMILIAR Y LABORAL","OBJETIVOS DE LA CONCILIACIÓN DE LA VIDA PERSONAL, FAMILIAR Y LABORAL","ALINEACIÓN DE LOS INDICADORES CON LOS DOCUMENTOS ESTRATÉGICOS Y LOS OBJETIVOS DE LA CONCILIACIÓN DE LA VIDA PERSONAL, FAMILIAR Y LABORAL"]

{"sheet":"EPR-1","index":1,"n_rows":98,"n_cols":15,"rows_kept":98,"cut":false,"hidden":false,"merged":[[1,1,3,2],[4,2,7,3],[4,4,4,11],[15,2,15,14],[8,2,8,14],[9,2,10,14],[11,2,11,3],[11,4,11,7],[11,8,11,9],[11,10,11,14],[12,2,12,3],[12,4,12,14],[13,2,13,3],[13,4,13,14],[4,12,4,14],[5,4,5,11],[5,12,5,14],[6,4,7,11],[6,12,6,14],[7,12,7,14],[16,15,17,15],[16,13,16,14],[17,13,18,14],[18,4,18,5],[16,2,16,3],[16,11,16,12],[17,11,18,12],[17,6,17,10],[18,6,18,10],[16,9,16,10],[16,7,16,8],[16,4,16,6],[22,7,23,8],[14,2,14,14],[22,4,22,6],[23,4,23,6],[19,2,21,3],[19,7,21,8],[19,11,19,14],[19,9,21,10],[19,4,21,6],[22,13,23,14],[22,2,22,3],[23,2,23,3],[22,9,23,10],[22,11,23,12],[17,2,18,3],[17,4,17,5],[44,2,44,14],[25,2,25,14],[26,2,42,8],[26,9,26,14],[42,9,42,14],[41,9,41,14],[26,15,27,15],[27,9,32,14],[33,9,33,14],[34,9,39,14],[40,9,40,14],[51,2,51,14],[52,2,52,5],[52,6,52,9],[52,10,52,14],[53,2,53,5],[53,6,53,9],[53,10,53,14],[54,2,54,5],[54,6,54,9],[54,10,54,14],[55,2,55,5],[55,6,55,9],[55,10,55,14],[56,2,56,5],[56,6,56,9],[56,10,56,14],[57,2,57,5],[57,6,57,9],[57,10,57,14],[61,2,61,14],[62,2,62,14],[58,2,58,5],[58,6,58,9],[58,10,58,14],[59,2,59,5],[59,6,59,9],[59,10,59,14]]}
[]
[null,"      REGRESAR"]
[]
[]
[null,null,null,null,"MACROPROCESO ESTRATÉGICO",null,null,null,null,null,null,null,"CÓDIGO: ESGr027"]
[null,null,null,null,"PROCESO GESTIÓN SISTEMAS INTEGRADOS - CALIDAD",null,null,null,null,null,null,null,"VERSIÓN: 8"]
[null,null,null,null,"MATRIZ DE MEDICIÓN Y SEGUIMIENTO A LOS PROCESOS DE GESTIÓN",null,null,null,null,null,null,null,"VIGENCIA: 2023-07-28"]
[null,null,null,null,null,null,null,null,null,null,null,null,"PÁGINA: 3 de 4"]
[]
[null,null,"FICHA DE INDICADOR"]
[]
[null,null,"MACROPROCESO",null,"Estratégico",null,null,null,"NOMBRE DEL INDICADOR",null,"Evaluación del No. de alianzas estratégicas mediante convenios empresariales"]
[null,null,"PROCESO GESTIÓN",null,"Proyectos Especiales y Relaciones Interinstitucionales"]
[null,null,"RESPONSABLE DE MEDICIÓN",null,"Director(a) Proyectos Especiales y Relaciones Interinstitucionales"]
[]
[null,null,"1. COMPORTAMIENTO DE INDICADOR"]
[null,null,"CLASIFICACIÓN DE LA MEDICIÓN",null,1,null,null,"TIPO DE INDICADOR",null,"Eficiencia",null,"META",null,1]
[null,null,"FÓRMULA",null,"NUMERADOR",null,"No. de alianzas estratégicas mediante convenios empresariales * 100",null,null,null,null,"UNIDAD DE MEDIDA",null,"Porcentual"]
[null,null,null,null,"DENOMINADOR",null,"No. de alianzas estratégicas proyectadas por año  "]
[null,null,"TENDENCIA",null,"Positiva",null,null,"NIVEL DE SEGREGACIÓN *",null,"No Aplica",null,"ESCALA"]
[null,null,null,null,null,null,null,null,null,null,null,"Deficiente","Aceptable","Bueno","Excelente"]
[null,null,null,null,null,null,null,null,null,null,null,"0-33","34-66","67-100","Superior a 100"]
[null,null,"ORIGEN DE DATOS NUMERADOR",null,"Base de contratos suscritos",null,null,"FRECUENCIA DE LA MEDICIÓN",null,"TRIMESTRAL",null,"FRECUENCIA DE RESULTADO",null,"ANUAL"]
[null,null,"ORIGEN DE DATOS DENOMINADOR",null,"Plan de acción"]
[]
[null,null,"RESULTADOS"]
[null,null,null,null,null,null,null,null,null,"ANÁLISIS DE DATOS"]
[null,null,null,null,null,null,null,null,null,"I TRIMESTRE: La Dirección de Proyectos Especiales y Relaciones Interinstitucionales ha realizado gestión comercial con las Alcaldía de Zipaquirá, la Calera y Villapinzón realizando mesas de trabajo con el fin de dar a conocer el portafolio de servicios, por otra parte, se ha presentado propuesta técnica y ecomica a la Alcaldía de Chía y estudio de mercado ante la Superintendencia de Notariado y Registro. \n\nII TRIMESTRE: La Dirección de Proyectos Especiales y Relaciones Interinstitucionales realizó acercamientos el Municipio de Cota con el fin de realizar mesas de trabajo para dar a conocer el portafolio de servicios, y así mismo conocer las necesidades del Municipio. Por otra parte, se presentó propuesta técnica y económica a la Secretaría de Educación de Soacha y la Gobernación del Tolima teniendo en cuenta el inicio del periodo de ley de garantías no se logró la firma del Convenio, por tanto, en este trimestre se suscribieron dos (2) Contratos Interadministrativos (Chía – Soacha) gracias a la gestión comercial realizada en los dos trimestres. \n\nIII TRIMESTRE: La Dirección de Proyectos Especiales y Relaciones Interinstitucionales realizó acercamientos el Ministerio de Ciencia Tecnología e Innovación con el fin de llegar a suscribir una alianza estratégica. \n\nIV TRIMESTRE: En 3 de noviembre de 2023, se realizó reunión con organismo conveniente con el fin de hacer acercamientos con Alcaldías de Cundinamarca para ejecutar con recursos provenientes del Sistema Nacional de Regalías que no han sido ejecutados por las Alcaldías."]
[]
[]
[]
[]
[]
[null,null,null,null,null,null,null,null,null,"ACCIÓN FORMULADA"]
[null,null,null,null,null,null,null,null,null,"\nI TRIMESTRE: Durante el periodo se ha venido realizando la revisión de los PIC de las diferentes alcaldías de los Municipios de Cundinamarca con el fin de dar a conocer nuestro portafolio y experiencia.\n\nII TRIMESTRE: Durante el período se continuó realizando las visitas y mesas de trabajo a los municipios en búsqueda de nuevas alianzas estratégicas.  \n\nIII TRIMESTRE: Teniendo en cuenta el periodo de restricción no se han suscrito alianzas estratégicas, pero se continua con la gestión comercial en los diferentes municipios de Cundinamarca y en las Secretarías de la Gobernación de Cundinamarca. \n\nIV TRIMESTRE: Con el fin de suscribir nuevas alianzas estratégicas, en el cuarto trimestre a pesar de las restricciones se realizó gestión comercial por parte de la Directora. "]
[]
[]
[]
[]
[]
[null,null,null,null,null,null,null,null,null,"RESPONSABLE "]
[null,null,null,null,null,null,null,null,null,{"$f":"E14","v":"Director(a) Proyectos Especiales y Relaciones Interinstitucionales"}]
[]
[]
[null,null,"PERIODO DE EVALUACIÓN"]
[null,null,"MES",{"$f":"IF(J23=\"MENSUAL\",\"ENERO\",IF(J23=\"TRIMESTRAL\",\"MARZO\",IF(J23=\"SEMESTRAL\",\"JUNIO\",IF(J23=\"ANUAL\",YEAR(TODAY()),\"\"))))","v":"MARZO"},{"$f":"IF(J23=\"MENSUAL\",\"FEBRERO\",IF(J23=\"TRIMESTRAL\",\"JUNIO\",IF(J23=\"SEMESTRAL\",\"DICIEMBRE\",\"\")))","v":"JUNIO"},{"$f":"IF(J23=\"MENSUAL\",\"MARZO\",IF(J23=\"TRIMESTRAL\",\"SEPTIEMBRE\",\"\"))","v":"SEPTIEMBRE"},{"$f":"IF(J23=\"MENSUAL\",\"ABRIL\",IF(J23=\"TRIMESTRAL\",\"DICIEMBRE\",\"\"))","v":"DICIEMBRE"},{"$f":"IF(J23=\"MENSUAL\",\"MAYO\",\"\")","v":""},{"$f":"IF(J23=\"MENSUAL\",\"JUNIO\",\"\")","v":""},{"$f":"IF(J23=\"MENSUAL\",\"JULIO\",\"\")","v":""},{"$f":"IF(J23=\"MENSUAL\",\"AGOSTO\",\"\")","v":""},{"$f":"IF(J23=\"MENSUAL\",\"SEPTIEMBRE\",\"\")","v":""},{"$f":"IF(J23=\"MENSUAL\",\"OCTUBRE\",\"\")","v":""},{"$f":"IF(J23=\"MENSUAL\",\"NOVIEMBRE\",\"\")","v":""},{"$f":"IF(J23=\"MENSUAL\",\"DICIEMBRE\",\"\")","v":""}]
[null,null,{"$f":"G18","v":"No. de alianzas estratégicas mediante convenios empresariales * 100"},0,3,1,0]
[null,null,{"$f":"G19","v":"No. de alianzas estratégicas proyectadas por año  "},3,3,3,3]
[null,null,"VALOR ",{"$f":"IFERROR(IF($E$17=1,D47/D48,IF($E$17=2,D47,\"\")),\"\")","v":0},{"$f":"IFERROR(IF($E$17=1,E47/E48,IF($E$17=2,E47,\"\")),\"\")","v":1},{"$f":"IFERROR(IF($E$17=1,F47/F48,IF($E$17=2,F47,\"\")),\"\")","v":0.33333333333333331},{"$f":"IFERROR(IF($E$17=1,G47/G48,IF($E$17=2,G47,\"\")),\"\")","v":0},null,"","","","","","",""]
[null,null,"META PONDERADA",{"$f":"IF(AND(N23=\"ANUAL\",J23=\"MENSUAL\"),N17/12,IF(AND(N23=\"ANUAL\",J23=\"TRIMESTRAL\"),N17/4,IF(AND(N23=\"ANUAL\",J23=\"SEMESTRAL\"),N17/2,IF(AND(N23=\"ANUAL\",J23=\"ANUAL\"),N17,IF(AND(N23=\"SEMESTRAL\",J23=\"MENSUAL\"),N17/6,IF(AND(N23=\"SEMESTRAL\",J23=\"TRIMESTRAL\"),N17/2,IF(AND(N23=\"SEMESTRAL\",J23=\"SEMESTRAL\"),N17,IF(AND(N23=\"SEMESTRAL\",J23=\"ANUAL\"),\"REVISAR FRECUENCIAS\",IF(AND(N23=\"TRIMESTRAL\",J23=\"MENSUAL\"),N17/3,IF(AND(N23=\"TRIMESTRAL\",J23=\"TRIMESTRAL\"),N17,IF(AND(N23=\"TRIMESTRAL\",J23=\"SEMESTRAL\"),\"REVISAR FRECUENCIAS\",IF(AND(N23=\"TRIMESTRAL\",J23=\"ANUAL\"),\"REVISAR FRECUENCIAS\",IF(AND(N23=\"MENSUAL\",J23=\"MENSUAL\"),N17,IF(AND(N23=\"MENSUAL\",J23=\"TRIMESTRAL\"),\"REVISAR FRECUENCIAS\",IF(AND(N23=\"MENSUAL\",J23=\"SEMESTRAL\"),\"REVISAR FRECUENCIAS\",IF(AND(N23=\"MENSUAL\",J23=\"ANUAL\"),\"REVISAR FRECUENCIAS\",\"\"))))))))))))))))","v":0.25},{"$f":"IF(AND(N23=\"ANUAL\",J23=\"MENSUAL\"),N17/12+D50,IF(AND(N23=\"ANUAL\",J23=\"TRIMESTRAL\"),N17/4+D50,IF(AND(N23=\"ANUAL\",J23=\"SEMESTRAL\"),N17/2+D50,IF(AND(N23=\"SEMESTRAL\",J23=\"MENSUAL\"),N17/6+D50,IF(AND(N23=\"SEMESTRAL\",J23=\"TRIMESTRAL\"),N17/2+D50,IF(AND(N23=\"SEMESTRAL\",J23=\"SEMESTRAL\"),N17,IF(AND(N23=\"TRIMESTRAL\",J23=\"MENSUAL\"),N17/3+D50,IF(AND(N23=\"TRIMESTRAL\",J23=\"TRIMESTRAL\"),N17,IF(AND(N23=\"MENSUAL\",J23=\"MENSUAL\"),N17,\"\")))))))))","v":0.5},{"$f":"IF(AND(N23=\"ANUAL\",J23=\"MENSUAL\"),N17/12+E50,IF(AND(N23=\"ANUAL\",J23=\"TRIMESTRAL\"),N17/4+E50,IF(AND(N23=\"SEMESTRAL\",J23=\"MENSUAL\"),N17/6+E50,IF(AND(N23=\"SEMESTRAL\",J23=\"TRIMESTRAL\"),N17/2,IF(AND(N23=\"TRIMESTRAL\",J23=\"MENSUAL\"),N17/3+E50,IF(AND(N23=\"TRIMESTRAL\",J23=\"TRIMESTRAL\"),N17,IF(AND(N23=\"MENSUAL\",J23=\"MENSUAL\"),N17,\"\")))))))","v":0.75},{"$f":"IF(AND(N23=\"ANUAL\",J23=\"MENSUAL\"),N17/12+F50,IF(AND(N23=\"ANUAL\",J23=\"TRIMESTRAL\"),N17/4+F50,IF(AND(N23=\"SEMESTRAL\",J23=\"MENSUAL\"),N17/6+F50,IF(AND(N23=\"SEMESTRAL\",J23=\"TRIMESTRAL\"),N17/2+F50,IF(AND(N23=\"TRIMESTRAL\",J23=\"MENSUAL\"),N17/3,IF(AND(N23=\"TRIMESTRAL\",J23=\"TRIMESTRAL\"),N17,IF(AND(N23=\"MENSUAL\",J23=\"MENSUAL\"),N17,\"\")))))))","v":1},{"$f":"IF(AND($N$23=\"ANUAL\",$J$23=\"MENSUAL\"),$N$17/12+G50,IF(AND(N23=\"SEMESTRAL\",J23=\"MENSUAL\"),N17/6+G50,IF(AND(N23=\"TRIMESTRAL\",J23=\"MENSUAL\"),N17/3+G50,IF(AND(N23=\"MENSUAL\",J23=\"MENSUAL\"),N17,\"\"))))","v":""},{"$f":"IF(AND($N$23=\"ANUAL\",$J$23=\"MENSUAL\"),$N$17/12+H50,IF(AND(N23=\"SEMESTRAL\",J23=\"MENSUAL\"),N17/6+H50,IF(AND(N23=\"TRIMESTRAL\",J23=\"MENSUAL\"),N17/3+H50,IF(AND(N23=\"MENSUAL\",J23=\"MENSUAL\"),N17,\"\"))))","v":""},{"$f":"IF(AND($N$23=\"ANUAL\",$J$23=\"MENSUAL\"),$N$17/12+I50,IF(AND(N23=\"SEMESTRAL\",J23=\"MENSUAL\"),N17/6,IF(AND(N23=\"TRIMESTRAL\",J23=\"MENSUAL\"),N17/3,IF(AND(N23=\"MENSUAL\",J23=\"MENSUAL\"),N17,\"\"))))","v":""},{"$f":"IF(AND($N$23=\"ANUAL\",$J$23=\"MENSUAL\"),$N$17/12+J50,IF(AND(N23=\"SEMESTRAL\",J23=\"MENSUAL\"),N17/6+J50,IF(AND(N23=\"TRIMESTRAL\",J23=\"MENSUAL\"),N17/3+J50,IF(AND(N23=\"MENSUAL\",J23=\"MENSUAL\"),N17,\"\"))))","v":""},{"$f":"IF(AND($N$23=\"ANUAL\",$J$23=\"MENSUAL\"),$N$17/12+K50,IF(AND(N23=\"SEMESTRAL\",J23=\"MENSUAL\"),N17/6+K50,IF(AND(N23=\"TRIMESTRAL\",J23=\"MENSUAL\"),N17/3+K50,IF(AND(N23=\"MENSUAL\",J23=\"MENSUAL\"),N17,\"\"))))","v":""},{"$f":"IF(AND($N$23=\"ANUAL\",$J$23=\"MENSUAL\"),$N$17/12+L50,IF(AND(N23=\"SEMESTRAL\",J23=\"MENSUAL\"),N17/6+L50,IF(AND(N23=\"TRIMESTRAL\",J23=\"MENSUAL\"),N17/3,IF(AND(N23=\"MENSUAL\",J23=\"MENSUAL\"),N17,\"\"))))","v":""},{"$f":"IF(AND($N$23=\"ANUAL\",$J$23=\"MENSUAL\"),$N$17/12+M50,IF(AND(N23=\"SEMESTRAL\",J23=\"MENSUAL\"),N17/6+M50,IF(AND(N23=\"TRIMESTRAL\",J23=\"MENSUAL\"),N17/3+M50,IF(AND(N23=\"MENSUAL\",J23=\"MENSUAL\"),N17,\"\"))))","v":""},{"$f":"IF(AND($N$23=\"ANUAL\",$J$23=\"MENSUAL\"),$N$17/12+N50,IF(AND(N23=\"SEMESTRAL\",J23=\"MENSUAL\"),N17/6+N50,IF(AND(N23=\"TRIMESTRAL\",J23=\"MENSUAL\"),N17/3+N50,IF(AND(N23=\"MENSUAL\",J23=\"MENSUAL\"),N17,\"\"))))","v":""}]
[]
[null,null,"NIVEL DE SEGREGACIÓN *"]
[null,null,"UNIDAD SEGREGADA (Ej. Facultad, Programa Académico, Área)",null,null,null,"RESULTADO",null,null,null,"ANALISIS DE DATOS SEGREGADO"]
[]
[]
[]
[]
[]
[]
[]
[]
[null,null,"Diagonal 18 No. 20-29 Fusagasugá – Cundinamarca\nTeléfono (601)  8281483 Línea Gratuita 018000180414\nwww.ucundinamarca.edu.co   E-mail:  info@ucundinamarca.edu.co\nNIT: 890.680.062-2                                                                             "]
[null,null,"Documento controlado por el Sistema de Gestión de la Calidad\nAsegúrese que corresponde a la última versión consultando el Portal Institucional"]
[]
[]
[]
[]
[]
[]
[]
[]
[null,null,null,null,null,null,"Estratégico",null,null,"Eficacia"]
[null,null,null,null,null,null,"Misional",null,null,"Eficiencia"]
[null,null,null,null,null,null,"Apoyo",null,null,"Acreditación"]
[null,null,null,null,null,null,"Seguimiento, Medición, Análisis y Evaluación",null,null,"Positiva"]
[null,null,null,null,null,null,"Direccionamiento Estratégico",null,null,"Negativa"]
[null,null,null,null,null,null,"Planeación Institucional",null,null,"Por Unidad Regional"]
[null,null,null,null,null,null,"Proyectos Especiales y Relaciones Interinstitucionales",null,null,"Por Facultad"]
[null,null,null,null,null,null,"Sistemas Integrados",null,null,"Por Programa Académico"]
[null,null,null,null,null,null,"Autoevaluación y Acreditación",null,null,"Por área"]
[null,null,null,null,null,null,"Comunicaciones",null,null,"Por Laboratorio"]
[null,null,null,null,null,null,"Formación y Aprendizaje",null,null,"Otros"]
[null,null,null,null,null,null,"Ciencia, Tecnología e Innovación",null,null,"No Aplica"]
[null,null,null,null,null,null,"Interacción Social Universitaria"]
[null,null,null,null,null,null,"Bienestar Universitario"]
[null,null,null,null,null,null,"Admisiones y Registro"]
[null,null,null,null,null,null,"Graduados"]
[null,null,null,null,null,null,"Dialogando con el Mundo"]
[null,null,null,null,null,null,"Talento Humano"]
[null,null,null,null,null,null,"Jurídica"]
[null,null,null,null,null,null,"Financiera"]
[null,null,null,null,null,null,"Sistemas y Tecnología"]
[null,null,null,null,null,null,"Bienes y Servicios"]
[null,null,null,null,null,null,"Documental"]
[null,null,null,null,null,null,"Apoyo Académico"]
[null,null,null,null,null,null,"Control Interno"]
[null,null,null,null,null,null,"Control Disciplinario"]
[null,null,null,null,null,null,"Servicio de Atención al Ciudadano"]

{"sheet":"EPR-2","index":2,"n_rows":98,"n_cols":15,"rows_kept":98,"cut":false,"hidden":false,"merged":[[61,2,61,14],[62,2,62,14],[58,2,58,5],[58,6,58,9],[58,10,58,14],[59,2,59,5],[59,6,59,9],[59,10,59,14],[56,2,56,5],[56,6,56,9],[56,10,56,14],[57,2,57,5],[57,6,57,9],[57,10,57,14],[54,2,54,5],[54,6,54,9],[54,10,54,14],[55,2,55,5],[55,6,55,9],[55,10,55,14],[53,2,53,5],[53,6,53,9],[53,10,53,14],[26,15,27,15],[27,9,32,14],[33,9,33,14],[34,9,39,14],[40,9,40,14],[41,9,41,14],[44,2,44,14],[51,2,51,14],[52,2,52,5],[52,6,52,9],[52,10,52,14],[22,13,23,14],[23,2,23,3],[23,4,23,6],[25,2,25,14],[26,2,42,8],[26,9,26,14],[42,9,42,14],[22,2,22,3],[22,4,22,6],[22,7,23,8],[22,9,23,10],[22,11,23,12],[19,2,21,3],[19,4,21,6],[19,7,21,8],[19,9,21,10],[19,11,19,14],[16,15,17,15],[17,2,18,3],[17,4,17,5],[17,6,17,10],[17,11,18,12],[17,13,18,14],[18,4,18,5],[18,6,18,10],[16,2,16,3],[16,4,16,6],[16,7,16,8],[16,9,16,10],[16,11,16,12],[16,13,16,14],[15,2,15,14],[8,2,8,14],[9,2,10,14],[11,2,11,3],[11,4,11,7],[11,8,11,9],[11,10,11,14],[12,2,12,3],[12,4,12,14],[13,2,13,3],[13,4,13,14],[14,2,14,14],[1,1,3,2],[4,2,7,3],[4,4,4,11],[4,12,4,14],[5,4,5,11],[5,12,5,14],[6,4,7,11],[6,12,6,14],[7,12,7,14]]}
[]
[null,"      REGRESAR"]
[]
[]
[null,null,null,null,"MACROPROCESO ESTRATÉGICO",null,null,null,null,null,null,null,"CÓDIGO: ESGr027"]
[null,null,null,null,"PROCESO GESTIÓN SISTEMAS INTEGRADOS - CALIDAD",null,null,null,null,null,null,null,"VERSIÓN: 8"]
[null,null,null,null,"MATRIZ DE MEDICIÓN Y SEGUIMIENTO A LOS PROCESOS DE GESTIÓN",null,null,null,null,null,null,null,"VIGENCIA: 2023-07-28"]
[null,null,null,null,null,null,null,null,null,null,null,null,"PÁGINA: 3 de 4"]
[]
[null,null,"FICHA DE INDICADOR"]
[]
[null,null,"MACROPROCESO",null,"Estratégico",null,null,null,"NOMBRE DEL INDICADOR",null,"Evaluación del No. de actividades desarrolladas de los contratos suscritos "]
[null,null,"PROCESO GESTIÓN",null,"Proyectos Especiales y Relaciones Interinstitucionales"]
[null,null,"RESPONSABLE DE MEDICIÓN",null,"Director(a) de Proyectos Especiales y Relaciones Interinstitucionales"]
[]
[null,null,"1. COMPORTAMIENTO DE INDICADOR"]
[null,null,"CLASIFICACIÓN DE LA MEDICIÓN",null,1,null,null,"TIPO DE INDICADOR",null,"Eficiencia",null,"META",null,1]
[null,null,"FÓRMULA",null,"NUMERADOR",null,"No. de actividades desarrolladas de los contratos suscritos * 100",null,null,null,null,"UNIDAD DE MEDIDA",null,"Porcentual"]
[null,null,null,null,"DENOMINADOR",null,"No. total de actividades planificadas de los contratos suscritos"]
[null,null,"TENDENCIA",null,"Positiva",null,null,"NIVEL DE SEGREGACIÓN *",null,"No Aplica",null,"ESCALA"]
[null,null,null,null,null,null,null,null,null,null,null,"Deficiente","Aceptable","Bueno","Excelente"]
[null,null,null,null,null,null,null,null,null,null,null,"0-50","51-80","81-100","Superior a 100 "]
[null,null,"ORIGEN DE DATOS NUMERADOR",null,"Cronograma de Actividades",null,null,"FRECUENCIA DE LA MEDICIÓN",null,"TRIMESTRAL",null,"FRECUENCIA DE RESULTADO",null,"ANUAL"]
[null,null,"ORIGEN DE DATOS DENOMINADOR",null,"Contrato Suscrito"]
[]
[null,null,"RESULTADOS"]
[null,null,null,null,null,null,null,null,null,"ANÁLISIS DE DATOS"]
[null,null,null,null,null,null,null,null,null,"I TRIMESTRE: No se tiene Convenios y/o Contratos Empresariales suscritos; razón por la cual tampoco se tienen actividades contractuales por desarrollar.\n\nII TRIMESTRE: Durante el segundo trimestre se dio inicio realizó el proceso de contratación de los organismos cooperantes y las ordenes de prestación de servicios para ejecución de actividades del Contrato Interadministrativo No. 602 -2023 y Contrato Interadministrativo No. 2988 – 2023. \n\nIII TRIMESTRE: A la fecha los organismos cooperantes de los B-CCE-001-2023 y B-CCE-002-2023 han presentado un informe de ejecución de acuerdo a las actividades establecidas para el periodo. \n\nIV TRIMESTRE: En los meses de octubre y noviembre de 2023 se finalizó la ejecución de actividades de los B-CCE-001-2023 y B-CCE-002-2023 con un porcentaje de cumplimiento de actividades del 100%. "]
[]
[]
[]
[]
[]
[null,null,null,null,null,null,null,null,null,"ACCIÓN FORMULADA"]
[null,null,null,null,null,null,null,null,null,"I TRIMESTRE: Una vez se suscriban Convenios de Cooperación y se definan las actividades correspondientes, se iniciará su ejecución y la verificación del cumplimiento según el cronograma establecido.\n\nII TRIMESTRE: Se realizó la selección de los posibles cooperantes y ordenes de prestación de servicios con el fin de verificar cumplimiento de requisitos para contratar. \n\nIII TRIMESTRE: Se realizó la revisión a los informes presentado con el fin de verificar el cumplimiento de las obligaciones contractuales establecidas en los contratos.  \n\nIV TRIMESTRE:  Se realizó la revisión de los informes presentado con el fin de verificar el cumplimiento de las obligaciones contractuales establecidas y las cuales se cumplieron en su totalidad en los términos establecidos.   "]
[]
[]
[]
[]
[]
[null,null,null,null,null,null,null,null,null,"RESPONSABLE "]
[null,null,null,null,null,null,null,null,null,{"$f":"E14","v":"Director(a) de Proyectos Especiales y Relaciones Interinstitucionales"}]
[]
[]
[null,null,"PERIODO DE EVALUACIÓN"]
[null,null,"MES",{"$f":"IF(J23=\"MENSUAL\",\"ENERO\",IF(J23=\"TRIMESTRAL\",\"MARZO\",IF(J23=\"SEMESTRAL\",\"JUNIO\",IF(J23=\"ANUAL\",YEAR(TODAY()),\"\"))))","v":"MARZO"},{"$f":"IF(J23=\"MENSUAL\",\"FEBRERO\",IF(J23=\"TRIMESTRAL\",\"JUNIO\",IF(J23=\"SEMESTRAL\",\"DICIEMBRE\",\"\")))","v":"JUNIO"},{"$f":"IF(J23=\"MENSUAL\",\"MARZO\",IF(J23=\"TRIMESTRAL\",\"SEPTIEMBRE\",\"\"))","v":"SEPTIEMBRE"},{"$f":"IF(J23=\"MENSUAL\",\"ABRIL\",IF(J23=\"TRIMESTRAL\",\"DICIEMBRE\",\"\"))","v":"DICIEMBRE"},{"$f":"IF(J23=\"MENSUAL\",\"MAYO\",\"\")","v":""},{"$f":"IF(J23=\"MENSUAL\",\"JUNIO\",\"\")","v":""},{"$f":"IF(J23=\"MENSUAL\",\"JULIO\",\"\")","v":""},{"$f":"IF(J23=\"MENSUAL\",\"AGOSTO\",\"\")","v":""},{"$f":"IF(J23=\"MENSUAL\",\"SEPTIEMBRE\",\"\")","v":""},{"$f":"IF(J23=\"MENSUAL\",\"OCTUBRE\",\"\")","v":""},{"$f":"IF(J23=\"MENSUAL\",\"NOVIEMBRE\",\"\")","v":""},{"$f":"IF(J23=\"MENSUAL\",\"DICIEMBRE\",\"\")","v":""}]
[null,null,{"$f":"G18","v":"No. de actividades desarrolladas de los contratos suscritos * 100"},0,0,32,89]
[null,null,{"$f":"G19","v":"No. total de actividades planificadas de los contratos suscritos"},0,89,89,89]
[null,null,"VALOR ",0,{"$f":"IFERROR(IF($E$17=1,E47/E48,IF($E$17=2,E47,\"\")),\"\")","v":0},{"$f":"IFERROR(IF($E$17=1,F47/F48,IF($E$17=2,F47,\"\")),\"\")","v":0.3595505617977528},{"$f":"IFERROR(IF($E$17=1,G47/G48,IF($E$17=2,G47,\"\")),\"\")","v":1},null,null,null,"","","","",""]
[null,null,"META PONDERADA",{"$f":"IF(AND(N23=\"ANUAL\",J23=\"MENSUAL\"),N17/12,IF(AND(N23=\"ANUAL\",J23=\"TRIMESTRAL\"),N17/4,IF(AND(N23=\"ANUAL\",J23=\"SEMESTRAL\"),N17/2,IF(AND(N23=\"ANUAL\",J23=\"ANUAL\"),N17,IF(AND(N23=\"SEMESTRAL\",J23=\"MENSUAL\"),N17/6,IF(AND(N23=\"SEMESTRAL\",J23=\"TRIMESTRAL\"),N17/2,IF(AND(N23=\"SEMESTRAL\",J23=\"SEMESTRAL\"),N17,IF(AND(N23=\"SEMESTRAL\",J23=\"ANUAL\"),\"REVISAR FRECUENCIAS\",IF(AND(N23=\"TRIMESTRAL\",J23=\"MENSUAL\"),N17/3,IF(AND(N23=\"TRIMESTRAL\",J23=\"TRIMESTRAL\"),N17,IF(AND(N23=\"TRIMESTRAL\",J23=\"SEMESTRAL\"),\"REVISAR FRECUENCIAS\",IF(AND(N23=\"TRIMESTRAL\",J23=\"ANUAL\"),\"REVISAR FRECUENCIAS\",IF(AND(N23=\"MENSUAL\",J23=\"MENSUAL\"),N17,IF(AND(N23=\"MENSUAL\",J23=\"TRIMESTRAL\"),\"REVISAR FRECUENCIAS\",IF(AND(N23=\"MENSUAL\",J23=\"SEMESTRAL\"),\"REVISAR FRECUENCIAS\",IF(AND(N23=\"MENSUAL\",J23=\"ANUAL\"),\"REVISAR FRECUENCIAS\",\"\"))))))))))))))))","v":0.25},{"$f":"IF(AND(N23=\"ANUAL\",J23=\"MENSUAL\"),N17/12+D50,IF(AND(N23=\"ANUAL\",J23=\"TRIMESTRAL\"),N17/4+D50,IF(AND(N23=\"ANUAL\",J23=\"SEMESTRAL\"),N17/2+D50,IF(AND(N23=\"SEMESTRAL\",J23=\"MENSUAL\"),N17/6+D50,IF(AND(N23=\"SEMESTRAL\",J23=\"TRIMESTRAL\"),N17/2+D50,IF(AND(N23=\"SEMESTRAL\",J23=\"SEMESTRAL\"),N17,IF(AND(N23=\"TRIMESTRAL\",J23=\"MENSUAL\"),N17/3+D50,IF(AND(N23=\"TRIMESTRAL\",J23=\"TRIMESTRAL\"),N17,IF(AND(N23=\"MENSUAL\",J23=\"MENSUAL\"),N17,\"\")))))))))","v":0.5},{"$f":"IF(AND(N23=\"ANUAL\",J23=\"MENSUAL\"),N17/12+E50,IF(AND(N23=\"ANUAL\",J23=\"TRIMESTRAL\"),N17/4+E50,IF(AND(N23=\"SEMESTRAL\",J23=\"MENSUAL\"),N17/6+E50,IF(AND(N23=\"SEMESTRAL\",J23=\"TRIMESTRAL\"),N17/2,IF(AND(N23=\"TRIMESTRAL\",J23=\"MENSUAL\"),N17/3+E50,IF(AND(N23=\"TRIMESTRAL\",J23=\"TRIMESTRAL\"),N17,IF(AND(N23=\"MENSUAL\",J23=\"MENSUAL\"),N17,\"\")))))))","v":0.75},{"$f":"IF(AND(N23=\"ANUAL\",J23=\"MENSUAL\"),N17/12+F50,IF(AND(N23=\"ANUAL\",J23=\"TRIMESTRAL\"),N17/4+F50,IF(AND(N23=\"SEMESTRAL\",J23=\"MENSUAL\"),N17/6+F50,IF(AND(N23=\"SEMESTRAL\",J23=\"TRIMESTRAL\"),N17/2+F50,IF(AND(N23=\"TRIMESTRAL\",J23=\"MENSUAL\"),N17/3,IF(AND(N23=\"TRIMESTRAL\",J23=\"TRIMESTRAL\"),N17,IF(AND(N23=\"MENSUAL\",J23=\"MENSUAL\"),N17,\"\")))))))","v":1},{"$f":"IF(AND($N$23=\"ANUAL\",$J$23=\"MENSUAL\"),$N$17/12+G50,IF(AND(N23=\"SEMESTRAL\",J23=\"MENSUAL\"),N17/6+G50,IF(AND(N23=\"TRIMESTRAL\",J23=\"MENSUAL\"),N17/3+G50,IF(AND(N23=\"MENSUAL\",J23=\"MENSUAL\"),N17,\"\"))))","v":""},{"$f":"IF(AND($N$23=\"ANUAL\",$J$23=\"MENSUAL\"),$N$17/12+H50,IF(AND(N23=\"SEMESTRAL\",J23=\"MENSUAL\"),N17/6+H50,IF(AND(N23=\"TRIMESTRAL\",J23=\"MENSUAL\"),N17/3+H50,IF(AND(N23=\"MENSUAL\",J23=\"MENSUAL\"),N17,\"\"))))","v":""},{"$f":"IF(AND($N$23=\"ANUAL\",$J$23=\"MENSUAL\"),$N$17/12+I50,IF(AND(N23=\"SEMESTRAL\",J23=\"MENSUAL\"),N17/6,IF(AND(N23=\"TRIMESTRAL\",J23=\"MENSUAL\"),N17/3,IF(AND(N23=\"MENSUAL\",J23=\"MENSUAL\"),N17,\"\"))))","v":""},{"$f":"IF(AND($N$23=\"ANUAL\",$J$23=\"MENSUAL\"),$N$17/12+J50,IF(AND(N23=\"SEMESTRAL\",J23=\"MENSUAL\"),N17/6+J50,IF(AND(N23=\"TRIMESTRAL\",J23=\"MENSUAL\"),N17/3+J50,IF(AND(N23=\"MENSUAL\",J23=\"MENSUAL\"),N17,\"\"))))","v":""},{"$f":"IF(AND($N$23=\"ANUAL\",$J$23=\"MENSUAL\"),$N$17/12+K50,IF(AND(N23=\"SEMESTRAL\",J23=\"MENSUAL\"),N17/6+K50,IF(AND(N23=\"TRIMESTRAL\",J23=\"MENSUAL\"),N17/3+K50,IF(AND(N23=\"MENSUAL\",J23=\"MENSUAL\"),N17,\"\"))))","v":""},{"$f":"IF(AND($N$23=\"ANUAL\",$J$23=\"MENSUAL\"),$N$17/12+L50,IF(AND(N23=\"SEMESTRAL\",J23=\"MENSUAL\"),N17/6+L50,IF(AND(N23=\"TRIMESTRAL\",J23=\"MENSUAL\"),N17/3,IF(AND(N23=\"MENSUAL\",J23=\"MENSUAL\"),N17,\"\"))))","v":""},{"$f":"IF(AND($N$23=\"ANUAL\",$J$23=\"MENSUAL\"),$N$17/12+M50,IF(AND(N23=\"SEMESTRAL\",J23=\"MENSUAL\"),N17/6+M50,IF(AND(N23=\"TRIMESTRAL\",J23=\"MENSUAL\"),N17/3+M50,IF(AND(N23=\"MENSUAL\",J23=\"MENSUAL\"),N17,\"\"))))","v":""},{"$f":"IF(AND($N$23=\"ANUAL\",$J$23=\"MENSUAL\"),$N$17/12+N50,IF(AND(N23=\"SEMESTRAL\",J23=\"MENSUAL\"),N17/6+N50,IF(AND(N23=\"TRIMESTRAL\",J23=\"MENSUAL\"),N17/3+N50,IF(AND(N23=\"MENSUAL\",J23=\"MENSUAL\"),N17,\"\"))))","v":""}]
[]
[null,null,"NIVEL DE SEGREGACIÓN *"]
[null,null,"UNIDAD SEGREGADA (Ej. Facultad, Programa Académico, Área)",null,null,null,"RESULTADO",null,null,null,"ANÁLISIS DE DATOS SEGREGADO"]
[]
[]
[]
[]
[]
[]
[]
[]
[null,null,"Diagonal 18 No. 20-29 Fusagasugá – Cundinamarca\nTeléfono (601)  8281483 Línea Gratuita 018000180414\nwww.ucundinamarca.edu.co   E-mail:  info@ucundinamarca.edu.co\nNIT: 890.680.062-2                                                                             "]
[null,null,"Documento controlado por el Sistema de Gestión de la Calidad\nAsegúrese que corresponde a la última versión consultando el Portal Institucional"]
[]
[]
[]
[]
[]
[]
[]
[]
[null,null,null,null,null,null,"Estratégico",null,null,"Eficacia"]
[null,null,null,null,null,null,"Misional",null,null,"Eficiencia"]
[null,null,null,null,null,null,"Apoyo",null,null,"Acreditación"]
[null,null,null,null,null,null,"Seguimiento, Medición, Análisis y Evaluación",null,null,"Positiva"]
[null,null,null,null,null,null,"Direccionamiento Estratégico",null,null,"Negativa"]
[null,null,null,null,null,null,"Planeación Institucional",null,null,"Por Unidad Regional"]
[null,null,null,null,null,null,"Proyectos Especiales y Relaciones Interinstitucionales",null,null,"Por Facultad"]
[null,null,null,null,null,null,"Sistemas Integrados",null,null,"Por Programa Académico"]
[null,null,null,null,null,null,"Autoevaluación y Acreditación",null,null,"Por área"]
[null,null,null,null,null,null,"Comunicaciones",null,null,"Por Laboratorio"]
[null,null,null,null,null,null,"Formación y Aprendizaje",null,null,"Otros"]
[null,null,null,null,null,null,"Ciencia, Tecnología e Innovación",null,null,"No Aplica"]
[null,null,null,null,null,null,"Interacción Social Universitaria"]
[null,null,null,null,null,null,"Bienestar Universitario"]
[null,null,null,null,null,null,"Admisiones y Registro"]
[null,null,null,null,null,null,"Graduados"]
[null,null,null,null,null,null,"Dialogando con el Mundo"]
[null,null,null,null,null,null,"Talento Humano"]
[null,null,null,null,null,null,"Jurídica"]
[null,null,null,null,null,null,"Financiera"]
[null,null,null,null,null,null,"Sistemas y Tecnología"]
[null,null,null,null,null,null,"Bienes y Servicios"]
[null,null,null,null,null,null,"Documental"]
[null,null,null,null,null,null,"Apoyo Académico"]
[null,null,null,null,null,null,"Control Interno"]
[null,null,null,null,null,null,"Control Disciplinario"]
[null,null,null,null,null,null,"Servicio de Atención al Ciudadano"]

{"sheet":"ACTUALIZACIONES","index":3,"n_rows":29,"n_cols":5,"rows_kept":29,"cut":false,"hidden":false,"merged":[[1,2,1,3],[1,1,4,1],[25,1,25,4],[28,1,28,4],[6,1,6,4],[3,2,4,3],[2,2,2,3]]}
[]
[null,null,"MACROPROCESO ESTRATÉGICO",null,"CÓDIGO: ESGr027"]
[null,null,"PROCESO GESTIÓN SISTEMAS INTEGRADOS - CALIDAD",null,"VERSIÓN: 8"]
[null,null,"MATRIZ DE MEDICIÓN Y SEGUIMIENTO A LOS PROCESOS DE GESTIÓN",null,"VIGENCIA: 2023-07-28"]
[null,null,null,null,"PÁGINA: 4 de 4"]
[]
[null,"CONTROL DE ACTUALIZACIONES"]
[null,"FECHA","DESCRIPCIÓN DE LA ACTUALIZACIÓN","RESPONSABLE","CARGO"]
[]
[]
[]
[]
[]
[]
[]
[]
[]
[]
[]
[]
[]
[]
[]
[]
[]
[null,"Diagonal 18 No. 20-29 Fusagasugá – Cundinamarca\nTeléfono (601)  8281483 Línea Gratuita 018000180414\nwww.ucundinamarca.edu.co   E-mail:  info@ucundinamarca.edu.co\nNIT: 890.680.062-2                                                                             "]
[]
[]
[null,"Documento controlado por el Sistema de Gestión de la Calidad\nAsegúrese que corresponde a la última versión consultando el Portal Institucional"]

{"sheet":"ITEM","index":4,"n_rows":4,"n_cols":3,"rows_kept":4,"cut":false,"hidden":true,"merged":[]}
["MENSUAL",null,"NÚMERO"]
["TRIMESTRAL",null,"PORCENTAJE"]
["SEMESTRAL"]
["ANUAL"]